bitfinex/quotes_ETHUSD_20250813
["timestamp","ask_amount","ask_price","bid_price","bid_amount"]
[1755095532981,0.1072,4661.9,4661.8,11.33840909]
[1755095533143,0.302799,4661.9,4661.8,9.54240909]
[1755095533344,0.302799,4661.9,4661.8,13.29440909]
[1755095533770,0.302799,4661.9,4661.8,9.54240909]
[1755095533973,0.302799,4661.9,4661.8,13.29440909]
[1755095534171,0.754799,4661.9,4661.8,13.29340909]
[1755095535573,0.754799,4661.9,4661.8,9.54240909]
[1755095535868,0.754799,4661.9,4661.8,13.29340909]
[1755095536079,0.302799,4661.9,4661.8,13.29340909]
[1755095536249,0.195599,4661.9,4661.8,13.29340909]
[1755095536449,0.302799,4661.9,4661.8,9.54240909]
[1755095536680,0.302799,4661.9,4661.8,13.29240909]
[1755095537083,0.30363985,4661.9,4661.8,13.29320909]
[1755095537486,0.30363985,4661.9,4661.8,9.54320909]
[1755095537780,0.30363985,4661.9,4661.8,13.29220909]
[1755095538483,0.30363985,4661.9,4661.8,15.08820909]
[1755095538882,0.30363985,4661.9,4661.8,15.15310909]
[1755095539086,0.30363985,4661.9,4661.8,9.54320909]
[1755095539289,0.30363985,4661.9,4661.8,13.29120909]
[1755095539661,0.30363985,4661.9,4661.8,15.08720909]
[1755095540054,0.1072,4661.9,4661.8,15.08720909]
[1755095540384,0.30464416,4661.9,4661.8,15.08720909]
[1755095542490,0.30464416,4661.9,4661.8,16.39819881]
[1755095542654,0.30464416,4661.9,4661.8,15.08720909]
[1755095542858,0.30464416,4661.9,4661.8,15.15210909]
[1755095543157,0.002,4663.0,4661.8,15.19140909]
[1755095543365,0.002,4663.0,4661.9,5.541]
[1755095543696,0.002,4663.0,4661.9,5.5418]
[1755095544002,0.002,4663.0,4662.0,1.81745002]
[1755095544188,0.002,4663.0,4662.9,0.1072]
[1755095544359,0.002,4663.0,4662.9,3.8522]
[1755095544740,0.002,4663.0,4662.9,2.28842]
[1755095544990,0.002,4663.0,4662.9,5.541]
[1755095545198,0.002,4663.0,4662.9,5.6482]
[1755095545498,0.002,4663.4,4662.9,5.6482]
[1755095545703,0.002,4663.4,4662.9,3.8522]
[1755095545916,0.002,4663.4,4663.0,1.796]
[1755095546057,0.002,4663.4,4663.0,2.36082]
[1755095546460,0.002,4663.4,4663.3,0.1072]
[1755095546696,0.1072,4664.3,4663.3,3.87164404]
[1755095546858,0.1072,4664.3,4663.4,1.796]
[1755095547055,0.1072,4664.3,4663.8,0.1072]
[1755095547287,0.452,4665.0,4663.9,3.742]
[1755095547484,0.1072,4664.0,4663.9,3.742]
[1755095547796,0.1072,4664.0,4663.2,1.796]
[1755095547957,0.1072,4663.6,4663.3,3.742]
[1755095548565,0.1072,4663.6,4663.3,5.538]
[1755095548765,0.1072,4663.6,4663.4,0.5538]
[1755095548966,0.1072,4663.6,4663.5,3.741]
[1755095549468,0.1072,4663.6,4663.3,0.0008]
[1755095549684,0.4749,4663.5,4663.3,0.0008]
[1755095549982,2.2362,4663.5,4663.4,3.74]
[1755095550560,2.2362,4663.5,4663.3,0.0008]
[1755095550892,3.0,4663.5,4663.4,3.739]
[1755095551296,5.2362,4663.5,4663.3,0.0008]
[1755095551600,3.0,4663.5,4663.4,5.139]
[1755095551765,3.0,4663.5,4663.4,8.877]
[1755095551766,1.7613,4663.5,4663.4,8.877]
[1755095552097,0.5821,4663.5,4662.0,0.95442091]
[1755095552394,2.2362,4663.5,4662.1,0.712093]
[1755095552597,0.1072,4662.4,4662.2,8.877]
[1755095553506,0.1072,4662.4,4662.3,1.6559]
[1755095553705,0.1072,4662.4,4662.2,5.139]
[1755095553879,0.1072,4662.4,4662.3,3.738]
[1755095554081,0.1072,4662.4,4662.3,4.6969893]
[1755095554287,0.1072,4662.4,4662.3,11.4908893]
[1755095554676,18.31475812,4664.2,4662.3,11.4908893]
[1755095554677,0.4749,4664.2,4662.3,11.4908893]
[1755095554875,0.1072,4662.9,4662.3,2.7220893]
[1755095555171,18.31475812,4665.0,4662.2,0.0008]
[1755095555172,0.19752547,4662.8,4662.4,10.5309]
[1755095555374,0.19752547,4662.7,4662.5,1.6559]
[1755095555675,0.1072,4663.3,4662.6,8.875]
[1755095555876,0.19755523,4663.2,4662.7,1.05309]
[1755095556102,0.19755523,4663.1,4662.8,10.5299]
[1755095556417,0.19755523,4663.0,4662.9,1.6559]
[1755095556709,0.19755523,4663.0,4662.9,1.7631]
[1755095557406,0.1072,4664.0,4662.9,5.4971]
[1755095557614,0.19774878,4663.9,4662.9,5.4971]
[1755095557785,0.19774878,4663.8,4663.2,0.1072]
[1755095557991,0.19774878,4663.7,4663.3,5.3899]
[1755095558309,0.19774878,4663.6,4663.4,1.6559]
[1755095558606,0.19780763,4664.3,4663.6,0.1072]
[1755095558805,0.19780763,4664.2,4663.7,3.734]
[1755095559010,0.19780763,4664.1,4663.8,1.6559]
[1755095559180,0.19780763,4664.0,4663.9,5.3889]
[1755095559378,0.19700763,4664.3,4663.9,5.93859]
[1755095559581,0.1272,4664.4,4664.0,1.6559]
[1755095559979,0.1272,4664.4,4663.7,0.0008]
[1755095560305,0.1072,4663.8,4663.7,0.0008]
[1755095560494,0.1072,4663.8,4663.7,3.732]
[1755095560898,0.1272,4664.4,4663.7,5.8683]
[1755095561099,0.02,4664.4,4664.3,0.1072]
[1755095561293,0.022,4665.4,4664.3,3.8382]
[1755095561479,0.1292,4665.4,4664.4,9.4669]
[1755095561699,0.1292,4665.4,4664.5,1.33051]
[1755095561879,0.1292,4665.4,4664.6,1.6559]
[1755095562087,0.1292,4665.4,4664.7,3.7524376]
[1755095562088,0.022,4665.4,4664.7,3.7524376]
[1755095562280,0.022,4665.4,4665.3,0.1072]
[1755095562622,0.022,4665.4,4665.3,6.8372]
[1755095562837,0.022,4665.4,4665.3,8.4931]
[1755095563794,0.022,4665.4,4665.3,8.3859]
[1755095563996,0.022,4665.4,4665.3,8.4931]
[1755095564209,0.022,4665.4,4665.3,9.34241]
[1755095565010,0.022,4665.4,4665.3,9.34041]
[1755095565212,0.022,4665.4,4665.3,5.61241]
[1755095565412,0.022,4665.4,4665.3,2.61241]
[1755095565612,0.022,4665.4,4665.3,5.4901]
[1755095566022,0.022,4665.4,4665.3,3.8342]
[1755095566225,0.022,4665.4,4665.3,0.1072]
[1755095566392,0.022,4665.4,4665.3,3.7268]
[1755095567939,0.022,4665.4,4665.3,0.0008]
[1755095568222,0.022,4665.4,4665.3,3.7268]
[1755095569594,0.022,4665.4,4665.3,0.0008]
[1755095569927,2.2582,4665.4,4665.3,3.7238]
[1755095570127,2.3654,4665.4,4665.3,3.7238]
[1755095570532,2.3654,4665.4,4665.3,0.0008]
[1755095570690,2.3654,4665.4,4663.9,0.1072]
[1755095570896,2.2362,4665.3,4663.1,1.6559]
[1755095571104,2.2362,4665.3,4662.1,0.02]
[1755095571105,3.0,4664.8,4663.2,3.722]
[1755095571428,0.1072,4663.7,4663.3,9.2302]
[1755095571634,0.1072,4663.7,4663.3,8.858]
[1755095571802,0.1072,4663.7,4663.4,8.858]
[1755095572005,0.5821,4663.7,4663.5,8.857]
[1755095572195,0.5821,4663.7,4663.6,3.721]
[1755095572400,0.1072,4663.7,4663.6,3.721]
[1755095572600,0.5821,4663.7,4663.6,3.721]
[1755095572800,0.1072,4663.7,4663.5,5.136]
[1755095573028,2.2362,4664.3,4663.5,5.136]
[1755095573029,0.4749,4664.3,4663.6,3.721]
[1755095573327,0.1072,4664.1,4663.6,3.721]
[1755095573528,0.1072,4664.1,4663.7,1.6773422]
[1755095573699,0.1072,4664.1,4663.7,1.6559]
[1755095574215,0.1072,4664.6,4663.7,1.6559]
[1755095574518,0.1072,4664.6,4663.6,4.6175]
[1755095574519,0.1072,4664.6,4663.9,0.1072]
[1755095574908,0.1072,4664.6,4664.0,3.72]
[1755095575231,0.4749,4664.5,4664.1,3.72]
[1755095575401,2.2362,4664.4,4664.2,3.72]
[1755095575596,2.2362,4664.3,4664.2,3.72]
[1755095575895,2.2362,4664.3,4663.5,5.136]
[1755095575896,2.3434,4664.3,4663.5,5.136]
[1755095576100,2.3434,4664.3,4663.3,0.0008]
[1755095576101,0.4749,4664.2,4663.3,0.0008]
[1755095576297,0.1072,4663.6,4663.4,8.854]
[1755095576617,2.2362,4663.5,4663.3,0.0008]
[1755095576806,2.2362,4663.5,4663.4,5.137]
[1755095577008,2.2354,4663.5,4663.4,8.855]
[1755095577324,2.2354,4663.5,4663.4,8.8558]
[1755095578124,5.2354,4663.5,4663.4,5.1378]
[1755095578325,5.2354,4663.5,4663.4,8.8548]
[1755095578535,5.43232039,4663.5,4663.4,8.8548]
[1755095579234,5.43231295,4663.5,4663.4,8.8548]
[1755095579448,0.67101295,4663.5,4663.4,5.1378]
[1755095579751,0.1072,4663.6,4663.4,11.46287205]
[1755095580037,0.1072,4663.6,4663.5,3.716]
[1755095580213,0.4674,4664.4,4663.5,3.716]
[1755095580408,1.6875,4664.3,4663.4,5.1378]
[1755095580611,0.4674,4664.2,4663.5,3.716]
[1755095581439,0.66444093,4664.7,4663.5,3.716]
[1755095581622,0.4674,4664.7,4663.5,3.716]
[1755095581824,0.4674,4664.7,4663.6,0.88548]
[1755095582140,0.66455224,4664.7,4663.5,3.716]
[1755095582347,0.66455224,4664.7,4663.5,0.0008]
[1755095582540,0.66455224,4664.7,4663.6,3.715]
[1755095582834,0.66455224,4664.7,4663.7,3.714]
[1755095583243,0.66455224,4664.7,4663.5,0.0008]
[1755095583412,0.4674,4664.6,4663.8,3.714]
[1755095583943,1.6875,4664.5,4663.5,0.0008]
[1755095584239,0.19715224,4664.4,4663.6,3.713]
[1755095584540,3.0,4664.2,4663.4,5.137]
[1755095584713,0.19728963,4664.1,4663.7,3.713]
[1755095584910,1.6875,4664.0,4663.7,3.713]
[1755095585114,0.66468963,4663.9,4663.7,3.713]
[1755095585314,0.4674,4663.9,4663.7,3.713]
[1755095585509,0.4674,4663.8,4663.7,3.713]
[1755095585710,0.4674,4664.5,4663.7,4.598]
[1755095585948,0.4674,4664.5,4663.7,3.713]
[1755095586147,0.022,4665.4,4663.7,3.713]
[1755095586148,2.1549,4665.3,4663.7,3.713]
[1755095586312,0.19720159,4665.2,4663.7,3.713]
[1755095586644,0.4674,4665.3,4663.8,1.80944174]
[1755095586842,0.022,4665.4,4663.8,2.18074174]
[1755095587045,0.022,4665.4,4663.9,0.0016]
[1755095587228,0.022,4665.4,4664.0,0.58739]
[1755095587546,0.022,4665.4,4664.0,2.37539]
[1755095587845,0.022,4665.4,4664.1,3.711]
[1755095588752,0.022,4665.4,4664.2,1.788]
[1755095589549,0.4674,4665.3,4664.3,3.71]
[1755095590047,0.4674,4665.3,4664.4,3.709]
[1755095590253,1.6875,4665.2,4664.4,3.709]
[1755095590559,0.1072,4664.5,4664.4,3.709]
[1755095590731,0.1064,4664.5,4664.4,3.709]
[1755095591626,0.1064,4664.5,4664.0,0.0008]
[1755095591830,0.1064,4664.5,4664.4,3.708]
[1755095593352,0.022,4665.4,4664.4,5.496]
[1755095593650,0.022,4665.4,4664.5,0.5496]
[1755095593856,0.1072,4664.9,4664.5,0.5496]
[1755095594227,0.022,4665.4,4664.6,1.788]
[1755095594553,0.022,4665.4,4665.0,0.1072]
[1755095594720,0.022,4665.4,4665.1,5.493]
[1755095594924,0.022,4665.4,4665.2,2.34818]
[1755095595355,0.022,4665.4,4665.3,3.704]
[1755095595731,0.1292,4665.4,4665.3,3.704]
[1755095596271,0.5966,4665.4,4665.3,3.704]
[1755095596561,0.1292,4665.4,4665.3,3.7048]
[1755095597171,0.1292,4665.4,4665.3,0.0008]
[1755095597321,0.1292,4665.4,4665.3,3.7048]
[1755095597520,0.1292,4665.4,4665.3,0.0008]
[1755095597718,0.5966,4665.4,4665.3,3.7038]
[1755095598354,0.5966,4665.4,4665.3,0.0008]
[1755095598574,0.5966,4665.4,4665.3,3.7028]
[1755095598875,0.1292,4665.4,4665.3,3.7028]
[1755095599023,2.2841,4665.4,4665.3,0.0008]
[1755095599228,2.2841,4665.4,4665.3,3.702]
[1755095599449,2.2841,4665.4,4664.5,2.671]
[1755095599618,0.4674,4665.3,4664.6,3.701]
[1755095599822,0.1072,4664.7,4664.5,2.671]
[1755095600050,0.1072,4664.7,4664.6,3.701]
[1755095600823,0.5746,4664.7,4664.6,3.701]
[1755095601227,2.2621,4664.7,4664.6,3.7]
[1755095601865,2.2621,4664.7,4664.6,3.7008]
[1755095602758,0.5746,4664.7,4664.6,3.7008]
[1755095602932,0.1072,4664.7,4664.6,3.7008]
[1755095603136,2.2621,4664.7,4664.6,0.0008]
[1755095603444,2.2621,4664.7,4664.6,3.6988]
[1755095603862,5.2621,4664.7,4664.6,3.6988]
[1755095604022,5.2621,4664.7,4664.6,0.0008]
[1755095604362,5.2621,4664.7,4664.6,3.6988]
[1755095604529,0.5746,4664.7,4664.6,3.6988]
[1755095605435,0.1072,4664.7,4664.6,0.0008]
[1755095605646,2.2621,4664.7,4664.6,3.6978]
[1755095606155,0.5746,4664.7,4664.6,0.0008]
[1755095606336,0.5746,4664.7,4664.6,3.6968]
[1755095606538,0.5738,4664.7,4664.6,3.6968]
[1755095607059,2.2613,4664.7,4664.6,3.6968]
[1755095608241,0.5738,4664.7,4664.6,3.6968]
[1755095608445,0.1064,4664.7,4664.6,3.6968]
[1755095609670,0.1064,4664.7,4664.6,8.8338]
[1755095610338,0.1064,4664.7,4664.6,8.8318]
[1755095610974,0.5652,4664.7,4664.6,8.8308]
[1755095611867,2.1875,4664.7,4664.6,8.8298]
[1755095612238,2.1875,4664.7,4664.6,8.8288]
[1755095613170,0.1064,4664.7,4664.6,8.8288]
[1755095613378,0.566,4664.7,4664.6,8.8288]
[1755095613540,2.1883,4664.7,4664.6,5.1378]
[1755095613735,0.566,4664.7,4664.6,8.8278]
[1755095614373,0.1072,4664.7,4664.6,8.8278]
[1755095615076,0.022,4665.4,4664.6,10.478]
[1755095615272,0.1072,4664.7,4664.6,11.62788]
[1755095615571,0.1072,4664.9,4664.6,11.62948]
[1755095615773,0.1072,4664.9,4664.7,1.6502]
[1755095616093,0.1072,4664.9,4664.8,5.117888]
[1755095616476,0.1072,4664.9,4664.8,3.080088]
[1755095616681,0.1072,4664.9,4664.8,6.768088]
[1755095617389,0.022,4665.4,4664.8,6.768088]
[1755095618893,0.022,4665.4,4664.9,1.6502]
[1755095619282,0.022,4665.4,4664.8,1.429888]
[1755095619482,0.4588,4665.3,4664.7,0.0008]
[1755095619865,0.022,4665.4,4664.7,0.0008]
[1755095620270,0.4588,4665.3,4664.6,5.137]
[1755095620677,0.4588,4665.3,4664.7,3.684]
[1755095620892,0.21031,4665.2,4664.7,3.684]
[1755095621094,2.0811,4665.1,4664.7,3.6848]
[1755095621289,0.4588,4665.0,4664.7,3.6848]
[1755095621662,0.022,4665.4,4664.7,3.6848]
[1755095621663,0.022,4665.4,4664.8,8.821]
[1755095621993,0.022,4665.4,4664.7,0.0008]
[1755095621994,0.022,4665.4,4664.9,8.82]
[1755095624197,0.022,4665.4,4664.9,9.70208]
[1755095625689,0.022,4665.4,4664.9,5.137]
[1755095626003,2.0811,4665.3,4664.9,5.137]
[1755095626173,2.0811,4665.2,4664.9,5.1378]
[1755095626372,2.0811,4665.1,4664.9,5.1378]
[1755095626573,2.0811,4665.0,4664.9,5.1378]
[1755095627106,2.0811,4665.0,4664.9,8.8168]
[1755095627404,2.1883,4665.0,4664.9,8.8168]
[1755095628211,5.38586641,4665.0,4664.9,8.8158]
[1755095628395,2.38586641,4665.0,4664.9,8.8158]
[1755095628920,0.30476641,4665.0,4664.9,8.8158]
[1755095629223,0.566,4665.0,4664.9,8.8158]
[1755095629577,2.1883,4665.0,4664.9,8.8158]
[1755095630071,2.1883,4665.0,4664.9,5.1378]
[1755095630275,2.40713,4665.0,4664.9,8.8158]
[1755095632779,2.40713,4665.0,4664.9,5.1378]
[1755095633098,2.40713,4665.0,4664.9,8.8138]
[1755095634079,2.40713,4665.0,4664.9,5.1378]
[1755095634279,2.40713,4665.0,4664.9,8.8118]
[1755095634709,2.40713,4665.0,4664.9,8.8108]
[1755095634879,0.32603,4665.0,4664.9,8.8108]
[1755095635080,2.40713,4665.0,4664.9,8.8108]
[1755095635514,5.60469535,4665.0,4663.6,0.001]
[1755095635723,3.0,4664.1,4663.7,3.673]
[1755095635884,0.1072,4663.7,4663.6,0.001]
[1755095636075,0.1072,4663.7,4663.6,3.673]
[1755095636276,2.40929583,4663.7,4663.6,3.673]
[1755095636503,0.32819583,4663.7,4663.6,3.673]
[1755095636703,0.1072,4663.7,4663.6,3.673]
[1755095637816,0.566,4663.7,4663.6,0.001]
[1755095638003,0.566,4663.7,4663.6,3.672]
[1755095638004,2.1883,4663.7,4663.6,3.672]
[1755095638200,2.1883,4663.7,4663.6,3.671]
[1755095638808,0.1072,4663.7,4663.6,3.671]
[1755095639187,0.56113721,4663.7,4663.6,3.671]
[1755095639688,0.56113721,4663.7,4663.6,0.001]
[1755095640017,3.0,4663.6,4663.3,0.001]
[1755095640217,0.0216583,4663.5,4663.4,3.669]
[1755095640419,2.1212583,4663.5,4662.9,0.001]
[1755095640588,26.6178438,4663.0,4662.9,0.001]
[1755095640788,26.7250438,4663.0,4662.9,3.67]
[1755095640996,27.1904438,4663.0,4662.9,3.67]
[1755095641211,27.1904438,4663.0,4662.0,0.001]
[1755095641212,3.0,4662.9,4662.0,0.001]
[1755095641517,3.0,4662.9,4662.5,8.805]
[1755095641518,5.1212583,4662.9,4662.5,8.805]
[1755095641720,2.0996,4662.8,4662.5,8.805]
[1755095641928,0.1072,4662.6,4662.5,8.805]
[1755095642093,0.1072,4662.6,4662.0,0.001]
[1755095642094,2.0996,4662.6,4662.0,0.001]
[1755095642419,3.642844,4662.6,4662.5,8.804]
[1755095642591,27.8218328,4662.6,4662.5,8.804]
[1755095642780,3.0,4662.5,4662.0,0.001]
[1755095642980,5.0996,4662.5,4662.2,8.805]
[1755095643204,2.0996,4662.4,4662.0,0.001]
[1755095643402,2.0996,4662.4,4662.2,8.805]
[1755095643601,2.74972234,4662.3,4662.2,8.805]
[1755095644185,0.4654,4662.3,4662.2,8.805]
[1755095644397,3.0,4663.0,4662.2,8.805]
[1755095644619,3.0,4662.3,4661.5,0.001]
[1755095644922,3.0,4661.5,4661.1,0.021]
[1755095645107,2.1212583,4661.4,4661.2,3.666]
[1755095645418,2.2600312,4661.4,4661.2,3.666]
[1755095645716,2.2600312,4661.4,4661.1,0.021]
[1755095645717,0.1820895,4661.4,4661.3,3.665]
[1755095645884,0.89843581,4661.4,4661.3,3.665]
[1755095646219,1.36383581,4661.4,4661.3,3.665]
[1755095646419,1.36383581,4661.4,4661.3,3.6658]
[1755095647324,0.89843581,4661.4,4661.3,3.6658]
[1755095647719,1.36383581,4661.4,4661.3,3.6658]
[1755095649018,0.4654,4662.0,4661.3,3.6658]
[1755095649731,0.4654,4662.0,4661.4,3.663]
[1755095649901,0.4654,4662.0,4661.3,0.0008]
[1755095649902,3.0,4661.8,4661.3,0.0008]
[1755095650101,0.0216583,4661.7,4661.5,3.663]
[1755095650300,0.0216583,4661.7,4661.3,0.0008]
[1755095650301,2.0996,4661.7,4661.3,0.0008]
[1755095650494,2.0996,4661.6,4661.4,3.662]
[1755095650692,2.0996,4661.6,4661.3,0.0008]
[1755095650693,2.0996,4661.5,4661.3,0.0008]
[1755095650889,2.0996,4661.5,4661.4,3.662]
[1755095651101,3.0,4661.4,4661.3,0.0008]
[1755095651321,0.0216583,4661.4,4661.3,3.6628]
[1755095651526,2.0996,4661.4,4661.3,8.8018]
[1755095651708,0.4654,4661.4,4661.3,8.8018]
[1755095651909,0.58086006,4661.4,4661.3,5.1398]
[1755095652109,0.68806006,4661.4,4661.3,8.8008]
[1755095652706,0.22266006,4661.4,4661.3,8.8008]
[1755095652912,0.1072,4661.4,4661.3,8.8008]
[1755095653238,0.1072,4661.4,4661.3,5.1398]
[1755095653524,0.1072,4661.4,4661.3,8.7998]
[1755095653918,0.1072,4661.4,4661.3,5.1398]
[1755095654121,0.1072,4661.4,4661.3,8.7998]
[1755095654322,0.5726,4661.4,4661.3,8.7998]
[1755095654516,0.1072,4661.4,4661.3,8.7998]
[1755095655911,0.1072,4661.4,4661.3,5.1398]
[1755095656125,0.1072,4661.4,4661.3,8.7988]
[1755095656435,0.5718,4661.4,4661.3,8.7978]
[1755095656638,2.44506043,4661.4,4661.3,8.7978]
[1755095657526,2.44506043,4661.4,4661.3,5.1398]
[1755095657709,2.44506043,4661.4,4661.3,8.7968]
[1755095658107,2.44506043,4661.4,4661.3,5.1398]
[1755095658332,2.44506043,4661.4,4661.3,8.7968]
[1755095658534,2.44506043,4661.4,4661.3,5.1398]
[1755095658737,5.64067391,4661.4,4661.3,5.1398]
[1755095658922,5.64067391,4661.4,4661.3,8.7958]
[1755095659130,3.0,4661.3,4660.1,0.02]
[1755095659304,21.31493666,4660.3,4660.2,5.14]
[1755095659623,3.1072,4660.2,4659.1,0.02]
[1755095659837,21.31493666,4659.2,4659.1,0.02]
[1755095660002,21.31493666,4659.2,4659.1,1.673]
[1755095660202,23.95636046,4659.2,4659.1,1.673]
[1755095661341,23.91971311,4659.2,4659.1,1.673]
[1755095661506,23.91971311,4659.2,4659.1,6.814]
[1755095662041,24.0332203,4659.2,4659.1,6.814]
[1755095662342,3.77534631,4659.1,4658.7,5.141]
[1755095662507,3.0,4658.7,4656.1,0.0216]
[1755095662701,0.1072,4658.2,4656.2,1.2788]
[1755095662901,0.1072,4658.2,4658.1,0.181]
[1755095663318,0.5726,4658.2,4658.1,0.181]
[1755095663546,2.2068,4658.2,4658.1,0.02]
[1755095663724,0.1072,4658.2,4658.1,0.334]
[1755095664038,0.1072,4658.2,4658.1,1.88322007]
[1755095664247,0.1072,4658.2,4658.1,2.07314208]
[1755095664704,0.1072,4658.2,4658.1,5.14272201]
[1755095665226,0.1072,4659.1,4658.1,5.41314208]
[1755095665427,0.19572944,4661.3,4659.0,0.1072]
[1755095665751,0.1072,4659.8,4659.0,0.1072]
[1755095666044,0.1072,4659.8,4659.1,4.9308]
[1755095666232,0.1072,4659.8,4659.2,1.2788]
[1755095666437,0.02,4661.4,4659.3,0.02146245]
[1755095666755,0.1072,4660.2,4659.5,0.1072]
[1755095666907,0.1072,4660.2,4659.6,1.30026106]
[1755095667251,0.1072,4660.2,4659.6,1.2788]
[1755095667540,0.02,4661.4,4659.7,0.1600606]
[1755095667744,0.02,4661.4,4660.1,0.1072]
[1755095667745,0.1072,4661.1,4660.1,0.1072]
[1755095667943,0.02,4661.4,4661.0,0.1072]
[1755095668109,0.02,4661.4,4661.1,3.65]
[1755095668306,0.02,4661.4,4661.2,1.2788]
[1755095668735,0.02,4661.4,4661.3,1.2788]
[1755095668952,0.02,4661.4,4661.2,1.2788]
[1755095669337,0.1072,4661.3,4661.2,1.2788]
[1755095669543,0.1072,4661.3,4659.7,0.1386]
[1755095669544,0.1072,4661.3,4660.5,1.2559]
[1755095669741,0.1072,4661.3,4660.6,3.649]
[1755095669927,0.02,4661.4,4659.9,1.2559]
[1755095670252,0.02,4661.4,4657.7,0.001]
[1755095670253,0.1072,4660.3,4660.0,3.648]
[1755095670951,0.1072,4660.1,4660.0,3.648]
[1755095671453,0.1072,4660.1,4660.0,8.79]
[1755095671813,0.1072,4660.1,4660.0,8.789]
[1755095675823,0.1072,4660.1,4660.0,5.142]
[1755095676118,2.2425,4660.1,4660.0,8.785]
[1755095676323,5.96319966,4660.1,4660.0,5.142]
[1755095676669,5.43894966,4660.1,4660.0,5.1428]
[1755095676822,6.08210866,4660.1,4660.0,5.1428]
[1755095677674,6.08210866,4660.1,4660.0,8.784]
[1755095677848,3.60821087,4660.0,4657.7,0.001]
[1755095678040,0.1072,4658.2,4657.7,0.001]
[1755095679034,0.1072,4658.2,4658.1,2.831]
[1755095679332,2.2425,4658.2,4658.1,2.831]
[1755095679546,2.43882323,4658.2,4658.1,2.831]
[1755095679724,5.68270555,4658.2,4658.1,2.831]
[1755095679925,3.30352323,4658.2,4658.1,2.831]
[1755095681429,3.30352323,4658.2,4658.1,7.974]
[1755095681757,3.1072,4658.2,4658.1,7.974]
[1755095681959,3.30307707,4658.2,4658.1,7.974]
[1755095682428,3.30306886,4658.2,4658.1,7.974]
[1755095683376,3.1072,4658.2,4658.1,7.974]
[1755095683530,0.1072,4658.2,4658.1,10.0273]
[1755095684159,0.1072,4658.2,4658.1,8.7714]
[1755095684361,0.1072,4658.2,4658.1,10.0273]
[1755095684742,0.1072,4658.2,4658.1,8.7714]
[1755095686084,0.1072,4658.6,4658.1,10.0273]
[1755095686289,0.4567,4660.5,4658.6,0.1072]
[1755095686439,0.1072,4659.2,4658.6,0.1072]
[1755095687171,1.6786,4660.1,4658.2,0.87714]
[1755095687353,0.1072,4658.5,4658.3,3.636]
[1755095687554,0.4567,4659.1,4658.3,3.636]
[1755095687757,0.1072,4658.4,4658.3,3.636]
[1755095687956,0.1064,4658.4,4658.3,3.636]
[1755095688380,0.5631,4658.4,4658.3,3.636]
[1755095688578,2.2417,4658.4,4658.3,3.636]
[1755095688777,2.46587,4658.4,4658.3,3.636]
[1755095689078,5.6617533,4658.4,4658.3,3.636]
[1755095690074,5.66169705,4658.4,4658.3,3.636]
[1755095690384,5.46587,4658.4,4658.3,3.636]
[1755095691583,5.46587,4658.4,4658.3,3.6368]
[1755095691987,3.78727,4658.4,4658.3,3.6368]
[1755095692365,3.78727,4658.4,4658.3,0.0008]
[1755095692569,3.78727,4658.4,4658.3,3.6328]
[1755095693191,3.33057,4658.4,4658.3,3.6328]
[1755095695305,5.46587,4658.4,4658.3,3.6328]
[1755095695472,5.66157631,4658.4,4658.3,3.6328]
[1755095695888,3.0,4658.3,4658.1,5.164]
[1755095696210,5.75551091,4658.3,4658.2,5.144]
[1755095696501,6.05835351,4658.3,4658.2,5.144]
[1755095697111,6.05835351,4658.3,4658.2,8.774]
[1755095698678,6.70181351,4658.3,4658.2,8.774]
[1755095700107,6.70208125,4658.3,4658.2,3.628]
[1755095700313,6.70208125,4658.3,4657.9,5.144]
[1755095700609,3.0,4658.1,4657.9,5.144]
[1755095700774,2.25599148,4658.0,4657.9,5.144]
[1755095700973,2.42073512,4658.0,4657.9,5.144]
[1755095701405,5.52793512,4658.0,4657.9,8.771]
[1755095702104,3.27194364,4658.0,4657.9,8.771]
[1755095702440,5.76290359,4658.0,4657.9,5.144]
[1755095702610,5.95889796,4658.0,4657.9,8.769]
[1755095703109,4.35299796,4658.0,4657.9,8.769]
[1755095703291,5.95889796,4658.0,4657.9,8.769]
[1755095704918,3.0,4657.9,4657.8,5.145]
[1755095705110,24.30555553,4657.9,4657.8,5.145]
[1755095705311,24.28389723,4657.9,4657.8,5.145]
[1755095705489,3.0,4657.8,4657.6,0.001]
[1755095705817,0.21765267,4657.7,4656.9,0.001]
[1755095705986,21.44445607,4657.2,4656.9,0.001]
[1755095706183,23.70045044,4657.2,4656.9,0.001]
[1755095706392,3.0,4657.1,4656.9,0.001]
[1755095706585,0.21765267,4657.0,4656.9,0.001]
[1755095706790,2.27765267,4657.0,4656.9,1.722]
[1755095707315,0.19599437,4657.0,4656.9,1.722]
[1755095707491,0.4757583,4657.0,4656.9,1.722]
[1755095707694,2.27765267,4657.0,4656.9,1.722]
[1755095708086,2.25599437,4657.0,4656.9,1.722]
[1755095708283,5.25599437,4657.0,4656.9,1.722]
[1755095709417,5.89963237,4657.0,4656.9,1.722]
[1755095709791,3.83963237,4657.0,4656.9,1.722]
[1755095709988,3.94683237,4657.0,4656.9,1.722]